fUSD/lending_fUSD_20260502
["ID","MTS","AMOUNT","RATE_DAILY","PERIOD"]
[421458781,1777703440000,-281.84396151,0.00033698,2]
[421458784,1777703440000,-300.0,0.00033698,2]
[421458786,1777703440000,-300.0,0.00033698,2]
[421458729,1777703440000,-1501.374153,0.00032877,7]
[421458767,1777703440000,-500.0,0.00033698,2]
[421458757,1777703440000,-157.0,0.00033125,30]
[421458778,1777703440000,-500.0,0.00033698,2]
[421458758,1777703440000,-171.0,0.00033125,30]
[421458752,1777703440000,-159.0,0.00033122,30]
[421458723,1777703440000,-1501.374153,0.00032877,7]
[421458726,1777703440000,-1501.374153,0.00032877,7]
[421458728,1777703440000,-1501.374153,0.00032877,7]
[421458731,1777703440000,-1501.374153,0.00032877,7]
[421458727,1777703440000,-1501.374153,0.00032877,7]
[421458730,1777703440000,-1501.374153,0.00032877,7]
[421458733,1777703440000,-1501.374153,0.00032877,7]
[421458734,1777703440000,-1501.374153,0.00032877,7]
[421458735,1777703440000,-1501.374156,0.00032877,7]
[421458736,1777703440000,-271.2033459,0.00032877,5]
[421458737,1777703440000,-150.0,0.000329,2]
[421458744,1777703440000,-150.0,0.00033,14]
[421458738,1777703440000,-270.3359101,0.00032966,2]
[421458724,1777703440000,-1501.374153,0.00032877,7]
[421458742,1777703440000,-313.99277232,0.00033,120]
[421458754,1777703440000,-154.0,0.00033125,30]
[421458741,1777703440000,-12583.32812655,0.00033,33]
[421458750,1777703440000,-1159.4294423,0.00033056,2]
[421458753,1777703440000,-725.90379825,0.00033122,30]
[421458748,1777703440000,-945.7421107,0.00033056,2]
[421458749,1777703440000,-999.0060882,0.00033056,2]
[421458759,1777703440000,-578.20924308,0.00033195,2]
[421458746,1777703440000,-1660.2495275,0.00033056,2]
[421458740,1777703440000,-6498.05914013,0.00032967,30]
[421458745,1777703440000,-5059.79,0.00033,30]
[421458747,1777703440000,-4435.4602881,0.00033056,2]
[421458739,1777703440000,-30834.77362947,0.00032967,2]
[421458743,1777703440000,-188.31669082,0.00033,120]
[421458812,1777703441000,-188.31669082,0.000339,120]
[421458819,1777703441000,-334.56085199,0.000339,6]
[421458807,1777703441000,-634.8843612,0.00033771,2]
[421458811,1777703441000,-313.99277232,0.000339,120]
[421458813,1777703441000,-150.0,0.000339,13]
[421458815,1777703441000,-800.0,0.000339,12]
[421458814,1777703441000,-2000.0,0.000339,7]
[421458816,1777703441000,-516.91084149,0.000339,2]
[421458818,1777703441000,-330.64457672,0.000339,2]
[421458823,1777703441000,-323.0,0.00033973,2]
[421458820,1777703441000,-14400.39464862,0.000339,2]
[421458821,1777703441000,-1132.38926042,0.000339,2]
[421458822,1777703441000,-152.0,0.00033919,6]
[421458824,1777703441000,-500.0,0.00033973,21]
[421458828,1777703441000,-500.0,0.00033999,2]
[421458831,1777703441000,-500.0,0.00033999,2]
[421458806,1777703441000,-258.7036771,0.00033771,2]
[421458829,1777703441000,-500.0,0.00033999,2]
[421458817,1777703441000,-1241.45126399,0.000339,2]
[421458805,1777703441000,-222.9083884,0.00033771,2]
[421458794,1777703441000,-1000.0,0.00033698,7]
[421458804,1777703441000,-211.0235886,0.00033771,2]
[421458825,1777703441000,-500.0,0.00033973,21]
[421458787,1777703441000,-300.0,0.00033698,2]
[421458797,1777703441000,-4300.0,0.000337,12]
[421458798,1777703441000,-1926.2,0.00033701,2]
[421458788,1777703441000,-300.0,0.00033698,2]
[421458789,1777703441000,-300.0,0.00033698,2]
[421458793,1777703441000,-300.0,0.00033698,2]
[421458795,1777703441000,-1000.0,0.00033698,7]
[421458792,1777703441000,-300.0,0.00033698,2]
[421458790,1777703441000,-300.0,0.00033698,2]
[421458796,1777703441000,-923.48339825,0.00033698,7]
[421458791,1777703441000,-300.0,0.00033698,2]
[421458800,1777703441000,-2324.38418275,0.00033771,2]
[421458799,1777703441000,-233.94988575,0.00033726,14]
[421458810,1777703441000,-153.88,0.0003389,2]
[421458801,1777703441000,-370.4517429,0.00033771,2]
[421458802,1777703441000,-156.8832986,0.00033771,2]
[421458803,1777703441000,-989.6849644,0.00033771,2]
[421458809,1777703441000,-2752.80895865,0.00033841,2]
[421458808,1777703441000,-800.0,0.000338,12]
[421458827,1777703441000,-1094.38604953,0.00033999,30]
[421458853,1777703441000,-1503.38,0.00033999,2]
[421458830,1777703441000,-500.0,0.00033999,2]
[421458854,1777703441000,-1503.38,0.00033999,2]
[421458851,1777703441000,-1503.38,0.00033999,2]
[421458849,1777703441000,-1503.38,0.00033999,2]
[421458826,1777703441000,-188.74,0.00033979,120]
[421458866,1777703441000,-300.0,0.00033999,2]
[421458862,1777703441000,-1503.38,0.00033999,2]
[421458871,1777703441000,-500.0,0.00034,120]
[421458863,1777703441000,-1503.38,0.00033999,2]
[421458867,1777703441000,-150.81536933,0.00033999,2]
[421458860,1777703441000,-1503.38,0.00033999,2]
[421458861,1777703441000,-1503.38,0.00033999,2]
[421458865,1777703441000,-300.0,0.00033999,2]
[421458870,1777703441000,-168.3888056,0.00033999,31]
[421458864,1777703441000,-1503.47882787,0.00033999,2]
[421458868,1777703441000,-557.5788265,0.00033999,31]
[421458869,1777703441000,-691.39774486,0.00033999,31]
[421458872,1777703441000,-451.98,0.00034,120]
[421458873,1777703441000,-929.22459501,0.00034,31]
[421458874,1777703441000,-48347.71761752,0.00034,120]
[421458852,1777703441000,-1503.38,0.00033999,2]
[421458850,1777703441000,-1503.38,0.00033999,2]
[421458855,1777703441000,-1503.38,0.00033999,2]
[421458834,1777703441000,-500.0,0.00033999,2]
[421458833,1777703441000,-500.0,0.00033999,2]
[421458835,1777703441000,-500.0,0.00033999,2]
[421458845,1777703441000,-1503.38,0.00033999,2]
[421458856,1777703441000,-1503.38,0.00033999,2]
[421458838,1777703441000,-500.0,0.00033999,2]
[421458836,1777703441000,-500.0,0.00033999,2]
[421458841,1777703441000,-500.0,0.00033999,2]
[421458843,1777703441000,-1503.38,0.00033999,2]
[421458839,1777703441000,-500.0,0.00033999,2]
[421458837,1777703441000,-500.0,0.00033999,2]
[421458840,1777703441000,-500.0,0.00033999,2]
[421458844,1777703441000,-1503.38,0.00033999,2]
[421458848,1777703441000,-1503.38,0.00033999,2]
[421458846,1777703441000,-1503.38,0.00033999,2]
[421458858,1777703441000,-1503.38,0.00033999,2]
[421458832,1777703441000,-500.0,0.00033999,2]
[421458857,1777703441000,-1503.38,0.00033999,2]
[421458847,1777703441000,-1503.38,0.00033999,2]
[421458842,1777703441000,-333.36,0.00033999,2]
[421458859,1777703441000,-1503.38,0.00033999,2]
[421458884,1777703442000,-8994.11514348,0.00034,120]
[421458880,1777703442000,-515.0,0.000294,10]
[421458882,1777703442000,-7311.75070994,0.00034,120]
[421458883,1777703442000,-1800.0,0.00034,120]
[421458879,1777703442000,-2319.58,0.00027397,10]
[421458878,1777703442000,-380.52932165,0.00034,120]
[421458877,1777703442000,-829.67010334,0.00034,120]
[421458875,1777703442000,-22971.44179011,0.00034,120]
[421458876,1777703442000,-48993.48432967,0.00034,120]
[421458881,1777703442000,-726.0,0.000316,30]
[421458885,1777703443000,-296.82102635,0.00033698,2]
[421458888,1777703445000,-730.0,0.00027137,2]
[421458889,1777703445000,-730.0,0.00027671,2]
[421458891,1777703445000,-566.31445905,0.00028205,3]
[421458892,1777703445000,-318.96554095,0.00028739,3]
[421458890,1777703445000,-163.68554095,0.00028205,3]
[421458893,1777703446000,-379.86433002,0.00028739,3]
[421458897,1777703462000,3464.64664321,0.0002607,120]
[421458898,1777703465000,500.0,0.0002607,120]
[421458904,1777704305000,150.0,0.00011834,2]
[421458906,1777704341000,-269.09037876,0.00012834,2]
[421458905,1777704341000,-150.0,0.00012834,2]
[421458907,1777704394000,805.02,0.00030137,120]
[421458917,1777704632000,-19.42205455,0.00012917,2]
[421458918,1777704632000,-319.0,0.00012917,2]
[421458916,1777704632000,-230.57794545,0.00012917,2]
[421458915,1777704632000,-300.0,0.00012917,2]
[421458934,1777704633000,-279.27424018,0.00019288,2]
[421458937,1777704633000,-159.0,0.0002,2]
[421458938,1777704633000,-174.0,0.0002,2]
[421458935,1777704633000,-150.0,0.00019834,2]
[421458936,1777704633000,-1200.0,0.00019999,2]
[421458944,1777704633000,-1000.0,0.00021419,2]
[421458943,1777704633000,-175.64,0.00021413,2]
[421458942,1777704633000,-150.0,0.00021384,2]
[421458940,1777704633000,-166.0,0.00021,2]
[421458941,1777704633000,-174.0,0.00021,2]
[421458930,1777704633000,-150.0,0.00017834,2]
[421458939,1777704633000,-150.0,0.00020834,2]
[421458932,1777704633000,-191.80759894,0.000189,2]
[421458922,1777704633000,-150.0,0.00013834,2]
[421458933,1777704633000,-785.72240106,0.000189,2]
[421458929,1777704633000,-150.0,0.00016834,2]
[421458928,1777704633000,-150.0,0.00015834,2]
[421458925,1777704633000,-300.0,0.00014117,2]
[421458946,1777704633000,-344.752932,0.00021808,2]
[421458924,1777704633000,-149.19250403,0.00014018,2]
[421458923,1777704633000,-130.08173615,0.00014018,2]
[421458927,1777704633000,-150.0,0.00014834,2]
[421458926,1777704633000,-250.0,0.00014117,2]
[421458920,1777704633000,-285.35359802,0.00013794,2]
[421458921,1777704633000,-250.0,0.00013794,2]
[421458919,1777704633000,-250.0,0.00013,2]
[421458931,1777704633000,-150.0,0.00018834,2]
[421458947,1777704633000,-150.0,0.00021834,2]
[421458950,1777704633000,-174.0,0.00022,2]
[421458973,1777704633000,-654.72900572,0.00023599,2]
[421458975,1777704633000,-5218.79958262,0.00023599,2]
[421458976,1777704633000,-2726.52883703,0.00023599,2]
[421458974,1777704633000,-689.16136204,0.00023599,2]
[421458965,1777704633000,-500.0,0.00023598,2]
[421458971,1777704633000,-271.17317545,0.00023599,2]
[421458969,1777704633000,-55848.05022263,0.00023599,2]
[421458968,1777704633000,-428.14062577,0.00023598,2]
[421458972,1777704633000,-2002.04656949,0.00023599,2]
[421458967,1777704633000,-500.0,0.00023598,2]
[421458949,1777704633000,-5000.0,0.00021918,2]
[421458966,1777704633000,-500.0,0.00023598,2]
[421458964,1777704633000,-500.0,0.00023598,2]
[421458960,1777704633000,-309.5408845,0.00023598,2]
[421458970,1777704633000,-407.7875021,0.00023599,2]
[421458959,1777704633000,-1000.0,0.00023589,2]
[421458948,1777704633000,-974.0,0.00021881,2]
[421458945,1777704633000,-300.0,0.00021807,2]
[421458951,1777704633000,-855.0,0.00022407,2]
[421458952,1777704633000,-208.41946552,0.00022407,2]
[421458953,1777704633000,-150.0,0.00022834,2]
[421458961,1777704633000,-500.0,0.00023598,2]
[421458963,1777704633000,-600.11400423,0.00023598,2]
[421458955,1777704633000,-301.7891141,0.00023,2]
[421458962,1777704633000,-500.0,0.00023598,2]
[421458956,1777704633000,-174.0,0.00023,2]
[421458954,1777704633000,-613.82,0.00022895,2]
[421458957,1777704633000,-168.5,0.00023171,2]
[421458958,1777704633000,-166.0,0.00023461,2]
[421458990,1777704637000,-500.0,0.00023598,2]
[421458991,1777704637000,-500.0,0.00023598,2]
[421458988,1777704637000,-500.0,0.00023598,2]
[421458992,1777704637000,-500.0,0.00023598,2]
[421458989,1777704637000,-500.0,0.00023598,2]
[421458987,1777704637000,-500.0,0.00023598,2]
[421458986,1777704637000,-500.0,0.00023598,2]
[421458984,1777704637000,-429.44457167,0.00023598,2]
[421458983,1777704637000,-500.0,0.00023598,2]
[421458985,1777704637000,-70.55542833,0.00023598,2]
[421458993,1777704637000,-500.0,0.00023598,2]
[421459005,1777704637000,-500.0,0.00023598,2]
[421458996,1777704637000,-500.0,0.00023598,2]
[421459006,1777704637000,-500.0,0.00023598,2]
[421459004,1777704637000,-500.0,0.00023598,2]
[421459000,1777704637000,-500.0,0.00023598,2]
[421459002,1777704637000,-500.0,0.00023598,2]
[421459001,1777704637000,-500.0,0.00023598,2]
[421458994,1777704637000,-500.0,0.00023598,2]
[421458999,1777704637000,-500.0,0.00023598,2]
[421458995,1777704637000,-500.0,0.00023598,2]
[421458997,1777704637000,-500.0,0.00023598,2]
[421458998,1777704637000,-500.0,0.00023598,2]
[421459003,1777704637000,-500.0,0.00023598,2]
[421459017,1777704638000,-500.0,0.00023598,2]
[421459014,1777704638000,-500.0,0.00023598,2]
[421459012,1777704638000,-628.49422102,0.00023598,2]
[421459013,1777704638000,-318.32007512,0.00023598,2]
[421459010,1777704638000,-500.0,0.00023598,2]
[421459007,1777704638000,-500.0,0.00023598,2]
[421459018,1777704638000,-500.0,0.00023598,2]
[421459019,1777704638000,-500.0,0.00023598,2]
[421459008,1777704638000,-500.0,0.00023598,2]
[421459015,1777704638000,-500.0,0.00023598,2]
[421459009,1777704638000,-500.0,0.00023598,2]
[421459016,1777704638000,-500.0,0.00023598,2]
[421459024,1777704638000,-500.0,0.00023598,2]
[421459021,1777704638000,-500.0,0.00023598,2]
[421459020,1777704638000,-500.0,0.00023598,2]
[421459022,1777704638000,-500.0,0.00023598,2]
[421459023,1777704638000,-500.0,0.00023598,2]
[421459025,1777704638000,-500.0,0.00023598,2]
[421459029,1777704638000,-380.52932165,0.00023599,2]
[421459030,1777704638000,-40370.29201201,0.00023599,2]
[421459028,1777704638000,-829.67010334,0.00023599,2]
[421459027,1777704638000,-48993.48432967,0.00023599,2]
[421459026,1777704638000,-3105.07206564,0.00023599,2]
[421459031,1777704638000,-4131.57449147,0.00023599,2]
[421459032,1777704638000,-650.24869359,0.00023599,2]
[421459011,1777704638000,-500.0,0.00023598,2]
[421459034,1777704640000,-43026.04108691,0.00023599,2]
[421459035,1777704640000,-16500.0,0.00023599,2]
[421459037,1777704640000,-5239.89376426,0.00023599,2]
[421459038,1777704640000,-745.1344488,0.00023599,2]
[421459039,1777704640000,-3294.2686256,0.00023599,2]
[421459036,1777704640000,-2943.95635846,0.00023599,2]
[421459060,1777704643000,-982.07925712,0.00023599,2]
[421459059,1777704643000,-343.10411232,0.00023599,2]
[421459056,1777704643000,-2300.18457912,0.00023599,2]
[421459058,1777704643000,-1141.95986912,0.00023599,2]
[421459057,1777704643000,-1220.52685329,0.00023599,2]
[421459055,1777704643000,-522.62702627,0.00023599,2]
[421459069,1777704645000,-625.54012998,0.00023599,2]
[421459073,1777704646000,-761.25738331,0.00023599,2]
[421459071,1777704646000,-1906.91603918,0.00023599,2]
[421459070,1777704646000,-14332.53756697,0.00023599,2]
[421459072,1777704646000,-4457.42456011,0.00023599,2]
[421459092,1777704665000,500.0,0.0002585,120]
[421459094,1777705499000,5000.01,0.00012,2]
[421459095,1777705540000,-111.31,0.00012,2]
[421459096,1777705540000,-343.12398976,0.000132,2]
[421459100,1777705540000,-16.04468527,0.00016022,30]
[421459097,1777705540000,-150.0,0.00014471,30]
[421459098,1777705540000,-250.0,0.00015918,2]
[421459099,1777705540000,-640.82356177,0.00015918,2]
[421459102,1777705640000,-150.0,0.00016016,30]
[421459103,1777705640000,-43.12398976,0.0002,2]
[421459101,1777705640000,-150.0,0.00014466,30]
[421459111,1777705831000,-160.0,0.00020904,2]
[421459113,1777705831000,-1200.0,0.0002095,2]
[421459107,1777705831000,-107.87601024,0.0002,2]
[421459114,1777705831000,-276.74128121,0.00020951,2]
[421459112,1777705831000,-300.0,0.0002095,2]
[421459108,1777705831000,-157.0,0.0002,2]
[421459109,1777705831000,-154.0,0.0002,2]
[421459110,1777705831000,-260.48398543,0.00020851,2]
[421459115,1777705831000,-5661.85871879,0.00020951,2]
[421459119,1777705831000,-128.91436273,0.00021203,2]
[421459116,1777705831000,-165.56383595,0.00021,2]
[421459125,1777705831000,-150.0,0.00022325,2]
[421459123,1777705831000,-500.0,0.0002204,2]
[421459122,1777705831000,-154.0,0.00022,2]
[421459120,1777705831000,-989.08563727,0.00021203,2]
[421459117,1777705831000,-157.0,0.00021,2]
[421459126,1777705831000,-197.99849224,0.00022407,2]
[421459118,1777705831000,-154.0,0.00021,2]
[421459121,1777705831000,-157.0,0.00022,2]
[421459124,1777705831000,-260.48398543,0.00022126,2]
[421459127,1777705832000,-306.91,0.00022432,2]
[421459128,1777705832000,-5119.47,0.00022562,2]
[421459131,1777705832000,-420.0,0.0002279,2]
[421459132,1777705832000,-152.0,0.00022916,7]
[421459129,1777705832000,-327.93,0.00022589,2]
[421459133,1777705832000,-157.0,0.00023,2]
[421459134,1777705832000,-154.0,0.00023,2]
[421459135,1777705832000,-204.5796,0.000234,2]
[421459136,1777705832000,-260.48398543,0.000234,2]
[421459137,1777705832000,-119.60113434,0.00023498,2]
[421459138,1777705832000,-1065.16227668,0.00023498,2]
[421459139,1777705832000,-1294.64297778,0.00023498,2]
[421459130,1777705832000,-5000.0,0.0002262,2]
[421459140,1777705832000,-625.6657112,0.00023498,2]
[421459158,1777705832000,-2412.11522595,0.00023499,2]
[421459141,1777705832000,-150.0,0.00023498,2]
[421459155,1777705832000,-1206.96082785,0.00023499,2]
[421459153,1777705832000,-574.81083747,0.00023499,2]
[421459150,1777705832000,-2032.86088036,0.00023499,2]
[421459151,1777705832000,-388.8323745,0.00023499,2]
[421459160,1777705832000,-301.48251273,0.00023499,2]
[421459148,1777705832000,-770.68,0.00023499,2]
[421459146,1777705832000,-1414.91584247,0.00023499,2]
[421459147,1777705832000,-458.44747329,0.00023499,2]
[421459142,1777705832000,-1174.50832178,0.00023499,2]
[421459149,1777705832000,-2742.99508424,0.00023499,2]
[421459144,1777705832000,-2283.41507822,0.00023499,2]
[421459185,1777705837000,-503.47737862,0.00023499,2]
[421459221,1777705838000,-439.2471874,0.00024999,2]
[421459218,1777705838000,-500.0,0.00024999,2]
[421459220,1777705838000,-60.7528126,0.00024999,2]
[421459217,1777705838000,-500.0,0.00024999,2]
[421459222,1777705838000,-500.0,0.00024999,2]
[421459214,1777705838000,-500.0,0.00024999,2]
[421459216,1777705838000,-500.0,0.00024999,2]
[421459224,1777705838000,-500.0,0.00024999,2]
[421459215,1777705838000,-500.0,0.00024999,2]
[421459219,1777705838000,-500.0,0.00024999,2]
[421459223,1777705838000,-500.0,0.00024999,2]
[421459232,1777705838000,-500.0,0.00024999,2]
[421459227,1777705838000,-500.0,0.00024999,2]
[421459229,1777705838000,-500.0,0.00024999,2]
[421459225,1777705838000,-500.0,0.00024999,2]
[421459231,1777705838000,-500.0,0.00024999,2]
[421459228,1777705838000,-500.0,0.00024999,2]
[421459230,1777705838000,-500.0,0.00024999,2]
[421459233,1777705838000,-500.0,0.00024999,2]
[421459234,1777705838000,-500.0,0.00024999,2]
[421459237,1777705838000,-500.0,0.00024999,2]
[421459236,1777705838000,-500.0,0.00024999,2]
[421459213,1777705838000,-2242.35732713,0.00024899,2]
[421459226,1777705838000,-500.0,0.00024999,2]
[421459212,1777705838000,-150.0,0.00024834,2]
[421459192,1777705838000,-156.244,0.00023597,2]
[421459209,1777705838000,-1000.0,0.00024658,2]
[421459186,1777705838000,-571.18927001,0.00023499,2]
[421459187,1777705838000,-1150.03513351,0.00023499,2]
[421459188,1777705838000,-4097.43696543,0.00023499,2]
[421459196,1777705838000,-569.85872329,0.000236,78]
[421459190,1777705838000,-390.0,0.000235,2]
[421459197,1777705838000,-1240.64077341,0.000236,78]
[421459189,1777705838000,-935.80459357,0.00023499,2]
[421459198,1777705838000,-1378.11214414,0.000236,78]
[421459191,1777705838000,-181.95087001,0.0002355,30]
[421459194,1777705838000,-633.12665658,0.00023598,2]
[421459195,1777705838000,-930.24381944,0.00023598,2]
[421459211,1777705838000,-587.0,0.00024792,2]
[421459235,1777705838000,-500.0,0.00024999,2]
[421459199,1777705838000,-273.1967,0.000236,2]
[421459201,1777705838000,-200.0,0.00023685,2]
[421459203,1777705838000,-500.0,0.00023699,2]
[421459207,1777705838000,-166.40142018,0.00024,2]
[421459204,1777705838000,-500.0,0.00023699,2]
[421459202,1777705838000,-1029.0779948,0.00023699,10]
[421459205,1777705838000,-150.0,0.00023834,2]
[421459206,1777705838000,-174.0,0.00024,2]
[421459208,1777705838000,-500.0,0.00024565,2]
[421459200,1777705838000,-2000.0,0.00023649,2]
[421459210,1777705838000,-152.48,0.00024658,2]
[421459193,1777705838000,-209.56355865,0.00023598,2]
[421459238,1777705838000,-500.0,0.00024999,2]
[421459247,1777705838000,-500.0,0.00024999,2]
[421459245,1777705838000,-500.0,0.00024999,2]
[421459262,1777705838000,-500.0,0.00024999,2]
[421459270,1777705838000,-500.0,0.00024999,2]
[421459242,1777705838000,-500.0,0.00024999,2]
[421459274,1777705838000,-500.0,0.00024999,2]
[421459276,1777705838000,-500.0,0.00024999,2]
[421459279,1777705838000,-500.0,0.00024999,2]
[421459283,1777705838000,-500.0,0.00024999,2]
[421459275,1777705838000,-500.0,0.00024999,2]
[421459280,1777705838000,-500.0,0.00024999,2]
[421459277,1777705838000,-500.0,0.00024999,2]
[421459272,1777705838000,-500.0,0.00024999,2]
[421459278,1777705838000,-500.0,0.00024999,2]
[421459281,1777705838000,-500.0,0.00024999,2]
[421459282,1777705838000,-500.0,0.00024999,2]
[421459285,1777705838000,-500.0,0.00024999,2]
[421459289,1777705838000,-500.0,0.00024999,2]
[421459284,1777705838000,-500.0,0.00024999,2]
[421459287,1777705838000,-500.0,0.00024999,2]
[421459286,1777705838000,-500.0,0.00024999,2]
[421459292,1777705838000,-500.0,0.00024999,2]
[421459288,1777705838000,-500.0,0.00024999,2]
[421459291,1777705838000,-500.0,0.00024999,2]
[421459290,1777705838000,-500.0,0.00024999,2]
[421459265,1777705838000,-500.0,0.00024999,2]
[421459271,1777705838000,-500.0,0.00024999,2]
[421459273,1777705838000,-500.0,0.00024999,2]
[421459267,1777705838000,-167.97225936,0.00024999,2]
[421459244,1777705838000,-500.0,0.00024999,2]
[421459241,1777705838000,-500.0,0.00024999,2]
[421459239,1777705838000,-500.0,0.00024999,2]
[421459240,1777705838000,-500.0,0.00024999,2]
[421459243,1777705838000,-228.49422102,0.00024999,2]
[421459246,1777705838000,-500.0,0.00024999,2]
[421459269,1777705838000,-500.0,0.00024999,2]
[421459256,1777705838000,-500.0,0.00024999,2]
[421459249,1777705838000,-500.0,0.00024999,2]
[421459250,1777705838000,-500.0,0.00024999,2]
[421459251,1777705838000,-500.0,0.00024999,2]
[421459257,1777705838000,-500.0,0.00024999,2]
[421459253,1777705838000,-500.0,0.00024999,2]
[421459248,1777705838000,-500.0,0.00024999,2]
[421459266,1777705838000,-500.0,0.00024999,2]
[421459263,1777705838000,-500.0,0.00024999,2]
[421459261,1777705838000,-500.0,0.00024999,2]
[421459264,1777705838000,-500.0,0.00024999,2]
[421459268,1777705838000,-500.0,0.00024999,2]
[421459259,1777705838000,-500.0,0.00024999,2]
[421459260,1777705838000,-500.0,0.00024999,2]
[421459252,1777705838000,-500.0,0.00024999,2]
[421459254,1777705838000,-500.0,0.00024999,2]
[421459258,1777705838000,-500.0,0.00024999,2]
[421459255,1777705838000,-500.0,0.00024999,2]
[421459302,1777705839000,-500.0,0.00024999,2]
[421459295,1777705839000,-500.0,0.00024999,2]
[421459294,1777705839000,-500.0,0.00024999,2]
[421459296,1777705839000,-600.0,0.00024999,2]
[421459298,1777705839000,-500.0,0.00024999,2]
[421459300,1777705839000,-500.0,0.00024999,2]
[421459297,1777705839000,-500.0,0.00024999,2]
[421459299,1777705839000,-500.0,0.00024999,2]
[421459303,1777705839000,-500.0,0.00024999,2]
[421459301,1777705839000,-500.0,0.00024999,2]
[421459293,1777705839000,-500.0,0.00024999,2]
[421459305,1777705839000,-500.0,0.00024999,2]
[421459306,1777705839000,-500.0,0.00024999,2]
[421459309,1777705839000,-500.0,0.00024999,2]
[421459308,1777705839000,-500.0,0.00024999,2]
[421459307,1777705839000,-500.0,0.00024999,2]
[421459314,1777705839000,-829.67010334,0.00025,7]
[421459311,1777705839000,-500.0,0.00024999,2]
[421459310,1777705839000,-500.0,0.00024999,2]
[421459313,1777705839000,-3557.77066189,0.00025,7]
[421459312,1777705839000,-500.0,0.00024999,2]
[421459315,1777705839000,-380.52932165,0.00025,7]
[421459316,1777705839000,-1165.55,0.00025,7]
[421459304,1777705839000,-500.0,0.00024999,2]
[421459329,1777705840000,-1127.06611192,0.00025,7]
[421459330,1777705840000,-8441.88632382,0.00025,7]
[421459332,1777705840000,-1738.02322196,0.00025,7]
[421459333,1777705840000,-781.12410002,0.00025,7]
[421459328,1777705840000,-1208.41684316,0.00025,7]
[421459334,1777705840000,-3302.40057009,0.00025,7]
[421459337,1777705840000,-564.11572434,0.00025,7]
[421459335,1777705840000,-3056.19022377,0.00025,7]
[421459336,1777705840000,-4323.43327946,0.00025,7]
[421459338,1777705840000,-504.38,0.00025,7]
[421459331,1777705840000,-427.08607195,0.00025,7]
[421459347,1777705842000,-343.07272125,0.00025,7]
[421459370,1777705843000,-669.13808099,0.0002739,7]
[421459369,1777705843000,-701.0,0.00027137,2]
[421459372,1777705843000,-1500.0,0.00027397,2]
[421459373,1777705843000,-1932.98,0.00027397,10]
[421459378,1777705843000,-152.63000001,0.00027671,2]
[421459386,1777705843000,-500.0,0.00028477,16]
[421459385,1777705843000,-701.0,0.00028205,3]
[421459387,1777705843000,-157.1,0.00028641,2]
[421459376,1777705843000,-701.0,0.00027671,2]
[421459382,1777705843000,-153.88,0.00028,2]
[421459388,1777705843000,-156.25,0.00028642,2]
[421459380,1777705843000,-150.0,0.00027834,2]
[421459390,1777705843000,-156.25,0.00028701,7]
[421459396,1777705843000,-150.0,0.00028834,2]
[421459389,1777705843000,-157.1,0.000287,7]
[421459368,1777705843000,-151.66,0.00027055,7]
[421459375,1777705843000,-500.0,0.00027648,14]
[421459371,1777705843000,-3821.92563496,0.0002739,7]
[421459355,1777705843000,-155.0,0.0002585,3]
[421459364,1777705843000,-150.0,0.00026834,2]
[421459349,1777705843000,-540.2898303,0.00025,7]